[Event "*** SCC Grand Prix: Titled Tuesday Blitz"]
[Site "Chess.com"]
[Date "2020.09.29"]
[Round "7"]
[White "KyronGriffith"]
[Black "alexrustemov"]
[Result "0-1"]
[WhiteElo "2516"]
[BlackElo "2723"]
[TimeControl "180+1"]
[EndTime "11:16:39 PDT"]
[Termination "alexrustemov won by checkmate"]

1. e4 {[%clk 0:03:00.9]} 1... e6 {[%clk 0:02:59.5]} 2. d4 {[%clk 0:03:00.7]}
2... d5 {[%clk 0:03:00.2]} 3. Nd2 {[%clk 0:03:01.3]} 3... dxe4 {[%clk
0:02:59.1]} 4. Nxe4 {[%clk 0:03:02.2]} 4... Bd7 {[%clk 0:02:59.6]} 5. Nf3 {[%clk
0:02:59]} 5... Bc6 {[%clk 0:03:00]} 6. Bd3 {[%clk 0:02:58.8]} 6... Nd7 {[%clk
0:03:00.5]} 7. Bf4 {[%clk 0:02:58.5]} 7... Ngf6 {[%clk 0:03:01]} 8. Nxf6+ {[%clk
0:02:55]} 8... Nxf6 {[%clk 0:02:59.7]} 9. O-O {[%clk 0:02:55.3]} 9... Bxf3
{[%clk 0:02:57.8]} 10. Qxf3 {[%clk 0:02:56.2]} 10... c6 {[%clk 0:02:56.8]} 11.
c3 {[%clk 0:02:53.5]} 11... Bd6 {[%clk 0:02:53.7]} 12. Bg5 {[%clk 0:02:51.7]}
12... h6 {[%clk 0:02:51]} 13. Bh4 {[%clk 0:02:51.5]} 13... Be7 {[%clk
0:02:21.4]} 14. Rfe1 {[%clk 0:02:51.1]} 14... Qd5 {[%clk 0:02:21]} 15. Qe2
{[%clk 0:02:31]} 15... Qh5 {[%clk 0:02:14.5]} 16. Qxh5 {[%clk 0:02:24.6]} 16...
Nxh5 {[%clk 0:02:15.4]} 17. Bxe7 {[%clk 0:02:25.5]} 17... Kxe7 {[%clk
0:02:15.8]} 18. g3 {[%clk 0:02:26.2]} 18... Nf6 {[%clk 0:02:14.6]} 19. Kg2
{[%clk 0:02:23.7]} 19... Rhd8 {[%clk 0:02:13.7]} 20. Rad1 {[%clk 0:02:22.9]}
20... Rd6 {[%clk 0:02:12.4]} 21. Be2 {[%clk 0:02:19.3]} 21... Rad8 {[%clk
0:02:12.2]} 22. Bf3 {[%clk 0:02:16.2]} 22... Nd5 {[%clk 0:01:58.3]} 23. a3
{[%clk 0:02:04.4]} 23... a5 {[%clk 0:01:50.8]} 24. h4 {[%clk 0:01:58.6]} 24...
b5 {[%clk 0:01:46.8]} 25. Rc1 {[%clk 0:01:41.7]} 25... Nb6 {[%clk 0:01:45]} 26.
b3 {[%clk 0:01:29.1]} 26... a4 {[%clk 0:01:40]} 27. bxa4 {[%clk 0:01:02.6]}
27... Nxa4 {[%clk 0:01:37.5]} 28. c4 {[%clk 0:00:57.6]} 28... Rxd4 {[%clk
0:01:35.1]} 29. Bxc6 {[%clk 0:00:56.3]} 29... Nc5 {[%clk 0:01:29.1]} 30. Bxb5
{[%clk 0:00:31.9]} 30... Nd3 {[%clk 0:01:28.3]} 31. a4 {[%clk 0:00:32.1]} 31...
Nxe1+ {[%clk 0:01:26.2]} 32. Rxe1 {[%clk 0:00:32.6]} 32... Rd1 {[%clk
0:01:26.2]} 33. Re5 {[%clk 0:00:28.6]} 33... Kd6 {[%clk 0:01:14.8]} 34. Re3
{[%clk 0:00:23.1]} 34... Ra1 {[%clk 0:01:09.4]} 35. Rd3+ {[%clk 0:00:18.6]}
35... Ke7 {[%clk 0:01:09.3]} 36. Rc3 {[%clk 0:00:17.1]} 36... Rd2 {[%clk
0:01:05.3]} 37. c5 {[%clk 0:00:17.6]} 37... Raa2 {[%clk 0:01:05.7]} 38. Rf3
{[%clk 0:00:18.1]} 38... f5 {[%clk 0:01:00.2]} 39. c6 {[%clk 0:00:17.9]} 39...
g5 {[%clk 0:00:57.3]} 40. hxg5 {[%clk 0:00:18.1]} 40... hxg5 {[%clk 0:00:58.2]}
41. Kf1 {[%clk 0:00:13.1]} 41... Rdc2 {[%clk 0:00:54]} 42. Kg2 {[%clk
0:00:09.9]} 42... Kf6 {[%clk 0:00:52.9]} 43. g4 {[%clk 0:00:08.6]} 43... f4
{[%clk 0:00:49.2]} 44. Kf1 {[%clk 0:00:04.4]} 44... e5 {[%clk 0:00:49.2]} 45.
Kg1 {[%clk 0:00:02.2]} 45... e4 {[%clk 0:00:49.2]} 46. Rb3 {[%clk 0:00:02.6]}
46... Rxf2 {[%clk 0:00:47.3]} 47. Rc3 {[%clk 0:00:03.1]} 47... Rfc2 {[%clk
0:00:47.2]} 48. Rxc2 {[%clk 0:00:03.7]} 48... Rxc2 {[%clk 0:00:47.9]} 49. a5
{[%clk 0:00:04.3]} 49... f3 {[%clk 0:00:45.9]} 50. a6 {[%clk 0:00:04.1]} 50...
e3 {[%clk 0:00:45]} 51. a7 {[%clk 0:00:03.4]} 51... Rc1+ {[%clk 0:00:45.6]} 52.
Kh2 {[%clk 0:00:03.4]} 52... e2 {[%clk 0:00:41]} 53. Bxe2 {[%clk 0:00:03.1]}
53... fxe2 {[%clk 0:00:39.4]} 54. a8=Q {[%clk 0:00:04]} 54... e1=Q {[%clk
0:00:39.4]} 55. Qf8+ {[%clk 0:00:04.6]} 55... Ke5 {[%clk 0:00:39.2]} 56. Qe7+
{[%clk 0:00:05]} 56... Kf4 {[%clk 0:00:37.5]} 57. Qf6+ {[%clk 0:00:05.6]} 57...
Kxg4 {[%clk 0:00:37.2]} 58. Qd4+ {[%clk 0:00:05.6]} 58... Kf5 {[%clk 0:00:36.5]}
59. Qd7+ {[%clk 0:00:06]} 59... Qe6 {[%clk 0:00:35.5]} 60. Qh7+ {[%clk 0:00:06]}
60... Kf4 {[%clk 0:00:33.4]} 61. Qd3 {[%clk 0:00:02.4]} 61... Qh6+ {[%clk
0:00:31.7]} 62. Kg2 {[%clk 0:00:02.3]} 62... Qh1+ {[%clk 0:00:32.2]} 63. Kf2
{[%clk 0:00:02.9]} 63... Qh2# {[%clk 0:00:32.2]} 0-1

[Event "*** SCC Grand Prix: Titled Tuesday Blitz"]
[Site "Chess.com"]
[Date "2020.09.29"]
[Round "7"]
[White "Aygehovit1992"]
[Black "Sergey85Rodchenkov"]
[Result "0-1"]
[WhiteElo "2622"]
[BlackElo "2473"]
[TimeControl "180+1"]
[EndTime "11:16:39 PDT"]
[Termination "Sergey85Rodchenkov won by resignation"]

1. e4 {[%clk 0:03:00.9]} 1... c5 {[%clk 0:02:59.6]} 2. g3 {[%clk 0:02:59]} 2...
d5 {[%clk 0:02:59.1]} 3. exd5 {[%clk 0:02:58.8]} 3... Qxd5 {[%clk 0:02:59.6]} 4.
Nf3 {[%clk 0:02:58.4]} 4... Qe6+ {[%clk 0:02:59.7]} 5. Qe2 {[%clk 0:02:58]} 5...
Qxe2+ {[%clk 0:02:56.5]} 6. Bxe2 {[%clk 0:02:58.9]} 6... Nc6 {[%clk 0:02:56.9]}
7. c3 {[%clk 0:02:58.8]} 7... Nf6 {[%clk 0:02:56.2]} 8. d3 {[%clk 0:02:59.1]}
8... Bf5 {[%clk 0:02:53.9]} 9. Be3 {[%clk 0:02:57.7]} 9... e6 {[%clk 0:02:53.2]}
10. Na3 {[%clk 0:02:53.4]} 10... h6 {[%clk 0:02:50.1]} 11. Nc4 {[%clk
0:02:52.7]} 11... O-O-O {[%clk 0:02:50]} 12. O-O-O {[%clk 0:02:51.8]} 12... Be7
{[%clk 0:02:45.4]} 13. Nfe5 {[%clk 0:02:50.4]} 13... Nxe5 {[%clk 0:02:43.6]} 14.
Nxe5 {[%clk 0:02:51.3]} 14... Rhf8 {[%clk 0:02:43.7]} 15. g4 {[%clk 0:02:49.6]}
15... Bh7 {[%clk 0:02:42.7]} 16. h4 {[%clk 0:02:48.8]} 16... Nd5 {[%clk
0:02:42.1]} 17. Bd2 {[%clk 0:02:49.1]} 17... Bd6 {[%clk 0:02:36.4]} 18. f4
{[%clk 0:02:48.7]} 18... f6 {[%clk 0:02:32.3]} 19. Nc4 {[%clk 0:02:45.8]} 19...
Bxf4 {[%clk 0:02:31.4]} 20. Rhf1 {[%clk 0:02:41.6]} 20... e5 {[%clk 0:02:29.9]}
21. h5 {[%clk 0:02:37.5]} 21... Kc7 {[%clk 0:02:27.5]} 22. a4 {[%clk 0:02:35.2]}
22... b6 {[%clk 0:02:27.3]} 23. Rf2 {[%clk 0:02:24.2]} 23... Rd7 {[%clk
0:02:25.9]} 24. Rdf1 {[%clk 0:02:24.2]} 24... Rfd8 {[%clk 0:02:23.4]} 25. Kc2
{[%clk 0:02:09.4]} 25... Bxd2 {[%clk 0:02:20.7]} 26. Kxd2 {[%clk 0:02:07.8]}
26... a6 {[%clk 0:02:15.9]} 27. b3 {[%clk 0:01:53]} 27... b5 {[%clk 0:02:07.7]}
28. axb5 {[%clk 0:01:52.6]} 28... axb5 {[%clk 0:02:08]} 29. Nb2 {[%clk
0:01:52.6]} 29... b4 {[%clk 0:02:02.3]} 30. cxb4 {[%clk 0:01:42.4]} 30... Nxb4
{[%clk 0:02:01.8]} 31. Rc1 {[%clk 0:01:43.1]} 31... Nxd3 {[%clk 0:01:46.1]} 32.
Bxd3 {[%clk 0:01:42.6]} 32... Bxd3 {[%clk 0:01:45.7]} 33. Rxc5+ {[%clk
0:01:42.8]} 33... Kb7 {[%clk 0:01:45.1]} 34. Kc3 {[%clk 0:01:41.5]} 34... Ba6
{[%clk 0:01:28.5]} 35. b4 {[%clk 0:01:07]} 35... Rc7 {[%clk 0:01:04.2]} 36. g5
{[%clk 0:00:59.9]} 36... Rxc5+ {[%clk 0:00:59.9]} 37. bxc5 {[%clk 0:00:59.4]}
37... hxg5 {[%clk 0:00:56.2]} 38. h6 {[%clk 0:00:59.8]} 38... gxh6 {[%clk
0:00:55.1]} 39. Rxf6 {[%clk 0:00:59.8]} 39... h5 {[%clk 0:00:46.6]} 40. Na4
{[%clk 0:00:51.2]} 40... Rd3+ {[%clk 0:00:42]} 41. Kb4 {[%clk 0:00:51.2]} 41...
Rd4+ {[%clk 0:00:41.9]} 42. Ka5 {[%clk 0:00:51.6]} 42... Bd3 {[%clk 0:00:36]}
43. c6+ {[%clk 0:00:40.8]} 43... Kc7 {[%clk 0:00:35.4]} 44. Nb6 {[%clk
0:00:36.3]} 44... Rd6 {[%clk 0:00:23.8]} 45. Rf7+ {[%clk 0:00:33.9]} 45... Kxc6
{[%clk 0:00:24]} 46. Nc8 {[%clk 0:00:31.6]} 46... Rh6 {[%clk 0:00:21.6]} 47. Kb4
{[%clk 0:00:30.2]} 47... e4 {[%clk 0:00:21.4]} 48. Kc3 {[%clk 0:00:30.4]} 48...
h4 {[%clk 0:00:21.2]} 49. Ne7+ {[%clk 0:00:30.6]} 49... Kb5 {[%clk 0:00:19.1]}
50. Nf5 {[%clk 0:00:30.5]} 50... Rh8 {[%clk 0:00:19.4]} 51. Nd4+ {[%clk
0:00:28.5]} 51... Kc5 {[%clk 0:00:19]} 52. Rf5+ {[%clk 0:00:28]} 52... Kd6
{[%clk 0:00:18.4]} 53. Rxg5 {[%clk 0:00:28.4]} 53... h3 {[%clk 0:00:18.1]} 54.
Rg1 {[%clk 0:00:26.4]} 54... h2 {[%clk 0:00:17.9]} 55. Rh1 {[%clk 0:00:26.9]}
55... Ke5 {[%clk 0:00:18.3]} 56. Nc6+ {[%clk 0:00:25]} 56... Kf4 {[%clk
0:00:17.9]} 57. Kd2 {[%clk 0:00:25]} 57... Kg3 {[%clk 0:00:17.9]} 58. Ke3 {[%clk
0:00:13.8]} 58... Kg2 {[%clk 0:00:18]} 0-1

[Event "*** SCC Grand Prix: Titled Tuesday Blitz"]
[Site "Chess.com"]
[Date "2020.09.29"]
[Round "7"]
[White "DenisQ"]
[Black "tteshan"]
[Result "1-0"]
[WhiteElo "2632"]
[BlackElo "2384"]
[TimeControl "180+1"]
[EndTime "11:16:41 PDT"]
[Termination "DenisQ won by resignation"]

1. Nf3 {[%clk 0:03:00.9]} 1... c5 {[%clk 0:02:59.6]} 2. c4 {[%clk 0:03:00.4]}
2... Nc6 {[%clk 0:02:59.9]} 3. Nc3 {[%clk 0:03:00.6]} 3... g6 {[%clk 0:03:00.3]}
4. e3 {[%clk 0:02:58]} 4... Bg7 {[%clk 0:02:59.9]} 5. d4 {[%clk 0:02:58.1]} 5...
cxd4 {[%clk 0:02:58.7]} 6. exd4 {[%clk 0:02:59]} 6... d6 {[%clk 0:02:53.6]} 7.
h3 {[%clk 0:02:57.6]} 7... e5 {[%clk 0:02:37.1]} 8. dxe5 {[%clk 0:02:53.2]} 8...
dxe5 {[%clk 0:02:34.6]} 9. Qxd8+ {[%clk 0:02:52.2]} 9... Kxd8 {[%clk 0:02:17.1]}
10. Bg5+ {[%clk 0:02:46.5]} 10... Nge7 {[%clk 0:02:15]} 11. O-O-O+ {[%clk
0:02:35.8]} 11... Kc7 {[%clk 0:01:52.1]} 12. Nd5+ {[%clk 0:01:53.2]} 12... Nxd5
{[%clk 0:01:50.8]} 13. cxd5 {[%clk 0:01:54.1]} 13... Nd4 {[%clk 0:01:39]} 14.
Nxd4 {[%clk 0:01:53.4]} 14... exd4 {[%clk 0:01:38.9]} 15. Bc4 {[%clk 0:01:36.5]}
15... Bf5 {[%clk 0:01:31.9]} 16. g4 {[%clk 0:01:34.8]} 16... Be4 {[%clk
0:01:24.4]} 17. Rhe1 {[%clk 0:01:33.9]} 17... Rhe8 {[%clk 0:00:27.6]} 18. Bb5
{[%clk 0:01:30]} 18... Kd6 {[%clk 0:00:16]} 19. Bxe8 {[%clk 0:01:20.4]} 19...
Rc8+ {[%clk 0:00:15.7]} 20. Bc6 {[%clk 0:01:11.7]} 20... Bxd5 {[%clk 0:00:15.1]}
21. Kd2 {[%clk 0:01:00.8]} 21... Rxc6 {[%clk 0:00:14.8]} 22. Rc1 {[%clk
0:00:59]} 22... f6 {[%clk 0:00:12.1]} 23. Bf4+ {[%clk 0:00:57.2]} 23... Kd7
{[%clk 0:00:11.9]} 24. Rxc6 {[%clk 0:00:57]} 24... bxc6 {[%clk 0:00:12.8]} 25.
b3 {[%clk 0:00:48]} 25... Bf8 {[%clk 0:00:12.1]} 26. Kd3 {[%clk 0:00:47.3]}
26... Bc5 {[%clk 0:00:11.6]} 27. Bc1 {[%clk 0:00:29.2]} 27... Bg2 {[%clk
0:00:09.1]} 28. h4 {[%clk 0:00:17.6]} 28... Bf3 {[%clk 0:00:09.5]} 29. g5 {[%clk
0:00:17.5]} 29... f5 {[%clk 0:00:08.9]} 30. Bb2 {[%clk 0:00:17.5]} 30... Be4+
{[%clk 0:00:08.8]} 31. Rxe4 {[%clk 0:00:17.7]} 31... fxe4+ {[%clk 0:00:09.7]}
32. Kxe4 {[%clk 0:00:18.2]} 32... Ke6 {[%clk 0:00:08]} 33. Bxd4 {[%clk
0:00:17.5]} 33... Bb4 {[%clk 0:00:03.7]} 34. Bxa7 {[%clk 0:00:17.1]} 34... Be1
{[%clk 0:00:04.3]} 35. Be3 {[%clk 0:00:15.9]} 35... Kd6 {[%clk 0:00:04.3]} 36.
a4 {[%clk 0:00:15.9]} 36... Bb4 {[%clk 0:00:04.7]} 37. f4 {[%clk 0:00:15.8]}
37... Ke6 {[%clk 0:00:04.9]} 38. Bd4 {[%clk 0:00:15.5]} 38... Ba5 {[%clk
0:00:05.3]} 39. Be5 {[%clk 0:00:14.9]} 39... Bb4 {[%clk 0:00:05.3]} 40. Kd4
{[%clk 0:00:14.9]} 40... Kd7 {[%clk 0:00:03.2]} 41. Kc4 {[%clk 0:00:14.5]} 41...
Ba5 {[%clk 0:00:03.5]} 42. b4 {[%clk 0:00:14.3]} 42... Bd8 {[%clk 0:00:04]} 43.
a5 {[%clk 0:00:14]} 43... Kc8 {[%clk 0:00:04.9]} 44. Bc3 {[%clk 0:00:13.1]}
44... Kb7 {[%clk 0:00:05.8]} 45. b5 {[%clk 0:00:13.2]} 45... cxb5+ {[%clk
0:00:05.8]} 46. Kxb5 {[%clk 0:00:14.1]} 46... Bc7 {[%clk 0:00:06.3]} 47. a6+
{[%clk 0:00:15]} 47... Ka7 {[%clk 0:00:06.4]} 48. Be5 {[%clk 0:00:15.2]} 48...
Bd8 {[%clk 0:00:06]} 49. Bd4+ {[%clk 0:00:15.3]} 49... Ka8 {[%clk 0:00:06.1]}
50. Kc6 {[%clk 0:00:15.9]} 50... Be7 {[%clk 0:00:06.5]} 51. Kd7 {[%clk
0:00:14.5]} 51... Bb4 {[%clk 0:00:06.8]} 52. Ke6 {[%clk 0:00:14.4]} 52... Bd2
{[%clk 0:00:06.8]} 53. Be5 {[%clk 0:00:14.6]} 53... Bc1 {[%clk 0:00:07]} 54. Kf7
{[%clk 0:00:15.3]} 54... Ka7 {[%clk 0:00:05.2]} 55. Kg7 {[%clk 0:00:15.8]} 55...
Kxa6 {[%clk 0:00:05.9]} 56. Kxh7 {[%clk 0:00:15.9]} 56... Kb7 {[%clk 0:00:06.8]}
57. Kxg6 {[%clk 0:00:16.1]} 57... Kc6 {[%clk 0:00:07.3]} 58. h5 {[%clk
0:00:16.7]} 1-0

[Event "*** SCC Grand Prix: Titled Tuesday Blitz"]
[Site "Chess.com"]
[Date "2020.09.29"]
[Round "7"]
[White "cassoulet"]
[Black "Snegokhod"]
[Result "1-0"]
[WhiteElo "2627"]
[BlackElo "2407"]
[TimeControl "180+1"]
[EndTime "11:16:41 PDT"]
[Termination "cassoulet won on time"]

1. e4 {[%clk 0:03:00.9]} 1... c5 {[%clk 0:02:59.7]} 2. Nc3 {[%clk 0:03:00.5]}
2... Nc6 {[%clk 0:02:59.2]} 3. g3 {[%clk 0:03:01.4]} 3... g6 {[%clk 0:02:59.1]}
4. Bg2 {[%clk 0:03:01.8]} 4... Bg7 {[%clk 0:02:59.6]} 5. d3 {[%clk 0:03:02]}
5... e6 {[%clk 0:02:59.8]} 6. Nf3 {[%clk 0:03:02]} 6... Nge7 {[%clk 0:02:59.2]}
7. Be3 {[%clk 0:03:02.3]} 7... Nd4 {[%clk 0:02:59.1]} 8. Qd2 {[%clk 0:03:02.1]}
8... h5 {[%clk 0:02:57.9]} 9. Nd1 {[%clk 0:02:59.3]} 9... d6 {[%clk 0:02:55.3]}
10. c3 {[%clk 0:02:59.3]} 10... Nxf3+ {[%clk 0:02:55.1]} 11. Bxf3 {[%clk
0:03:00.2]} 11... b6 {[%clk 0:02:45.9]} 12. Bg5 {[%clk 0:02:54.7]} 12... Bb7
{[%clk 0:02:42.1]} 13. O-O {[%clk 0:02:54]} 13... d5 {[%clk 0:02:36.2]} 14. Qe2
{[%clk 0:02:45.3]} 14... dxe4 {[%clk 0:02:32.9]} 15. dxe4 {[%clk 0:02:46.2]}
15... Qc8 {[%clk 0:02:25.8]} 16. Ne3 {[%clk 0:02:36.7]} 16... Ba6 {[%clk
0:02:19.9]} 17. Nc4 {[%clk 0:02:35.3]} 17... Bxc4 {[%clk 0:02:13.9]} 18. Qxc4
{[%clk 0:02:36.2]} 18... Qc7 {[%clk 0:02:08.9]} 19. Qa4+ {[%clk 0:02:25.9]}
19... Nc6 {[%clk 0:02:01.5]} 20. e5 {[%clk 0:02:21.8]} 20... Rc8 {[%clk
0:02:01.1]} 21. Bf6 {[%clk 0:02:15.6]} 21... O-O {[%clk 0:01:59]} 22. Bxc6
{[%clk 0:02:11.7]} 22... Qxc6 {[%clk 0:01:58.3]} 23. Qf4 {[%clk 0:02:12]} 23...
Rc7 {[%clk 0:01:45.6]} 24. Rad1 {[%clk 0:02:07.7]} 24... Rd7 {[%clk 0:01:45.6]}
25. h4 {[%clk 0:01:55.7]} 25... Kh7 {[%clk 0:01:44.7]} 26. Bg5 {[%clk
0:01:42.4]} 26... Rd5 {[%clk 0:01:40.9]} 27. Be7 {[%clk 0:01:25.3]} 27... Kg8
{[%clk 0:00:46.1]} 28. Bxf8 {[%clk 0:01:21.7]} 28... Kxf8 {[%clk 0:00:46.5]} 29.
Qe4 {[%clk 0:01:06.3]} 29... c4 {[%clk 0:00:45.5]} 30. Rxd5 {[%clk 0:01:04.3]}
30... exd5 {[%clk 0:00:45.4]} 31. Qd4 {[%clk 0:01:03]} 31... Qe6 {[%clk
0:00:38.2]} 32. Rd1 {[%clk 0:00:59.4]} 32... Bxe5 {[%clk 0:00:31.6]} 33. Qxd5
{[%clk 0:00:59.3]} 33... Qg4 {[%clk 0:00:29.7]} 34. Kg2 {[%clk 0:00:53.8]} 34...
Kg8 {[%clk 0:00:25.7]} 35. Qf3 {[%clk 0:00:51.9]} 35... Qe6 {[%clk 0:00:25]} 36.
Re1 {[%clk 0:00:49.9]} 36... Qd6 {[%clk 0:00:24.4]} 37. Qe4 {[%clk 0:00:47.6]}
37... Bf6 {[%clk 0:00:24]} 38. Qxc4 {[%clk 0:00:46.9]} 38... Kg7 {[%clk
0:00:23.9]} 39. Re2 {[%clk 0:00:46.8]} 39... a5 {[%clk 0:00:22.5]} 40. Qe4
{[%clk 0:00:46.5]} 40... Qd1 {[%clk 0:00:21.9]} 41. Qf3 {[%clk 0:00:45.3]} 41...
Qb1 {[%clk 0:00:20.9]} 42. Qc6 {[%clk 0:00:36.5]} 42... Qxa2 {[%clk 0:00:18]}
43. Qxb6 {[%clk 0:00:35.6]} 43... a4 {[%clk 0:00:17.5]} 44. Qc5 {[%clk
0:00:32.6]} 44... Qb1 {[%clk 0:00:16.1]} 45. Qc4 {[%clk 0:00:30.5]} 45... Qd1
{[%clk 0:00:15.3]} 46. Re8 {[%clk 0:00:27.5]} 46... Qd7 {[%clk 0:00:14.3]} 47.
Qe4 {[%clk 0:00:24.6]} 47... Qb5 {[%clk 0:00:11.7]} 48. Qe2 {[%clk 0:00:21.7]}
48... Qc6+ {[%clk 0:00:11.4]} 49. Kh2 {[%clk 0:00:21.8]} 49... g5 {[%clk
0:00:09.7]} 50. hxg5 {[%clk 0:00:21]} 50... Bxg5 {[%clk 0:00:10.2]} 51. Re5
{[%clk 0:00:21.1]} 51... Bf6 {[%clk 0:00:09.8]} 52. Rxh5 {[%clk 0:00:20.7]}
52... Qb6 {[%clk 0:00:09]} 53. Qg4+ {[%clk 0:00:20.8]} 53... Kf8 {[%clk
0:00:09]} 54. Rf5 {[%clk 0:00:20.5]} 54... Ke7 {[%clk 0:00:08.8]} 55. Qe4+
{[%clk 0:00:20.2]} 55... Kf8 {[%clk 0:00:08.4]} 56. Qb4+ {[%clk 0:00:20.3]}
56... Kg7 {[%clk 0:00:08.6]} 57. Qxb6 {[%clk 0:00:19.8]} 1-0

[Event "*** SCC Grand Prix: Titled Tuesday Blitz"]
[Site "Chess.com"]
[Date "2020.09.29"]
[Round "7"]
[White "Vamostodorecto"]
[Black "pirulillo"]
[Result "1-0"]
[WhiteElo "2392"]
[BlackElo "2227"]
[TimeControl "180+1"]
[EndTime "11:16:43 PDT"]
[Termination "Vamostodorecto won by checkmate"]

1. d4 {[%clk 0:03:00.9]} 1... Nf6 {[%clk 0:02:58.9]} 2. c4 {[%clk 0:02:59.9]}
2... g6 {[%clk 0:02:59.2]} 3. Nc3 {[%clk 0:03:00.3]} 3... Bg7 {[%clk 0:03:00.1]}
4. e4 {[%clk 0:02:59.5]} 4... O-O {[%clk 0:03:00.7]} 5. Be2 {[%clk 0:02:59.8]}
5... d6 {[%clk 0:03:00.9]} 6. Nf3 {[%clk 0:03:00.5]} 6... e5 {[%clk 0:03:00.5]}
7. O-O {[%clk 0:03:00.6]} 7... Nc6 {[%clk 0:03:00.7]} 8. d5 {[%clk 0:03:01]}
8... Ne7 {[%clk 0:03:01.2]} 9. Be3 {[%clk 0:03:01.6]} 9... Ng4 {[%clk
0:02:59.6]} 10. Bg5 {[%clk 0:02:57.7]} 10... f6 {[%clk 0:02:58.9]} 11. Bd2
{[%clk 0:02:57.4]} 11... f5 {[%clk 0:02:57]} 12. Ng5 {[%clk 0:02:56.6]} 12...
Nf6 {[%clk 0:02:55.4]} 13. exf5 {[%clk 0:02:52.6]} 13... Nxf5 {[%clk 0:02:53.3]}
14. Ne6 {[%clk 0:02:53.4]} 14... Bxe6 {[%clk 0:02:51.4]} 15. dxe6 {[%clk
0:02:54.3]} 15... c6 {[%clk 0:02:48.8]} 16. f4 {[%clk 0:02:50.2]} 16... Qe7
{[%clk 0:02:44.4]} 17. g4 {[%clk 0:02:35.8]} 17... Nd4 {[%clk 0:02:37.3]} 18. f5
{[%clk 0:02:36.1]} 18... gxf5 {[%clk 0:02:13.2]} 19. gxf5 {[%clk 0:02:37]} 19...
Kh8 {[%clk 0:02:05.6]} 20. Be3 {[%clk 0:02:33.2]} 20... Ne8 {[%clk 0:01:49.2]}
21. Bxd4 {[%clk 0:02:28.4]} 21... exd4 {[%clk 0:01:48.7]} 22. Ne4 {[%clk
0:02:29]} 22... d5 {[%clk 0:01:45.4]} 23. cxd5 {[%clk 0:02:29.9]} 23... cxd5
{[%clk 0:01:45.5]} 24. Ng3 {[%clk 0:02:29]} 24... Qg5 {[%clk 0:01:42.4]} 25. Qc1
{[%clk 0:02:20.2]} 25... Qe3+ {[%clk 0:01:21.6]} 26. Qxe3 {[%clk 0:02:13.5]}
26... dxe3 {[%clk 0:01:22.5]} 27. Rad1 {[%clk 0:02:13.1]} 27... d4 {[%clk
0:01:16.5]} 28. Ne4 {[%clk 0:01:57.1]} 28... Rc8 {[%clk 0:01:01.3]} 29. Bd3
{[%clk 0:01:50.6]} 29... Nf6 {[%clk 0:00:57.1]} 30. Nd6 {[%clk 0:01:43.8]} 30...
Rc7 {[%clk 0:00:54.8]} 31. Rc1 {[%clk 0:01:41.1]} 31... Nd5 {[%clk 0:00:44.9]}
32. Rxc7 {[%clk 0:01:33.8]} 32... Nxc7 {[%clk 0:00:42.1]} 33. Rc1 {[%clk
0:01:33]} 33... Nd5 {[%clk 0:00:35.4]} 34. Be4 {[%clk 0:01:16.2]} 34... Nf4
{[%clk 0:00:34]} 35. Rc7 {[%clk 0:00:56.9]} 35... e2 {[%clk 0:00:28.8]} 36. Kf2
{[%clk 0:00:54.5]} 36... Nxe6 {[%clk 0:00:26.6]} 37. Nf7+ {[%clk 0:00:50.2]}
37... Rxf7 {[%clk 0:00:24.7]} 38. Rxf7 {[%clk 0:00:51.1]} 38... Ng5 {[%clk
0:00:24.6]} 39. Re7 {[%clk 0:00:46.1]} 39... Bf6 {[%clk 0:00:23]} 40. Re8+
{[%clk 0:00:43.3]} 40... Kg7 {[%clk 0:00:23.5]} 41. Bd3 {[%clk 0:00:28.2]} 41...
Kf7 {[%clk 0:00:20.4]} 42. Rb8 {[%clk 0:00:22]} 42... Nh3+ {[%clk 0:00:15.7]}
43. Kxe2 {[%clk 0:00:20.8]} 43... Nf4+ {[%clk 0:00:15.6]} 44. Kd2 {[%clk
0:00:21.1]} 44... Nd5 {[%clk 0:00:15.1]} 45. Rxb7+ {[%clk 0:00:20.5]} 45... Kf8
{[%clk 0:00:14.9]} 46. Be4 {[%clk 0:00:18.8]} 46... Bg5+ {[%clk 0:00:14.2]} 47.
Kd3 {[%clk 0:00:17.9]} 47... Nf6 {[%clk 0:00:14.1]} 48. Kxd4 {[%clk 0:00:17.2]}
48... h5 {[%clk 0:00:13.7]} 49. Ke5 {[%clk 0:00:15.3]} 49... Bh4 {[%clk
0:00:13.6]} 50. Bd5 {[%clk 0:00:14.1]} 50... Ng4+ {[%clk 0:00:12]} 51. Ke6
{[%clk 0:00:13.2]} 51... Nxh2 {[%clk 0:00:10]} 52. Rf7+ {[%clk 0:00:13]} 52...
Kg8 {[%clk 0:00:09.3]} 53. Rxa7 {[%clk 0:00:13.9]} 53... Kh8 {[%clk 0:00:09.3]}
54. f6 {[%clk 0:00:13.8]} 54... Ng4 {[%clk 0:00:09.7]} 55. f7 {[%clk 0:00:12.4]}
55... Ne3 {[%clk 0:00:06.1]} 56. f8=Q# {[%clk 0:00:10.4]} 1-0